[Event "WTCC-65 2018"]
[Site "Radebeul"]
[Date "2018.07.14"]
[Round "8"]
[White "Vucenovic, Dragomir"]
[Black "Singer, Hans"]
[Result "1-0"]
[ECO "D34"]
[WhiteElo "2186"]
[BlackElo "2175"]
[Annotator "NA"]
[PlyCount "82"]
[EventDate "2018.07.07"]
[EventType "team-tourn"]
[EventCountry "GER"]
[SourceTitle "playchess.com"]
[Source "ChessBase"]
[SourceQuality "1"]
[TimeControl "40/5400+30:1800+30"]

1. d4 {[%emt 0:00:00]} d5 {[%emt 0:00:00]} 2. Nf3 {[%emt 0:00:00]} Nf6 {[%emt 0:00:46]} 3. g3 {[%emt 0:00:03]} e6 {[%emt 0:00:59]} 4. Bg2 {[%emt 0:00:17]} c5 {[%emt 0:00:06]} 5. O-O {[%emt 0:00:21]} Nc6 {[%emt 0:00:57]} 6. c4 {[%emt 0:00:43]} Be7 {[%emt 0:00:50]} 7. Nc3 {[%emt 0:02:48]} O-O {[%emt 0:03:43]} 8. cxd5 {[%emt 0:02:23]} exd5 {[%emt 0:00:03]} 9. Bf4 {[%emt 0:07:52]} cxd4 {[%emt 0:05:32]} 10. Nxd4 {[%emt 0:00:27]} Qb6 {[%emt 0:00:33]} 11. Nxc6 {[%emt 0:06:02]} bxc6 {[%emt 0:00:11]} 12. b3 {[%emt 0:03:54]} Bg4 {[%emt 0:06:41]} 13. Qc2 {[%emt 0:04:17]} Bh5 {[%emt 0:04:36]} 14. Na4 {[%emt 0:20:36]} Qa6 {[%emt 0:00:58]} 15. Rfc1 {[%emt 0:06:44]} Rac8 {[%emt 0:05:06]} 16. Bh3 {[%emt 0:02:45]} Bg4 {[%emt 0:00:24]} 17. Bxg4 {[%emt 0:02:47]} Nxg4 {[%emt 0:00:03]} 18. Qd2 {[%emt 0:07:37]} Nf6 {[%emt 0:00:42]} 19. Qd3 {[%emt 0:00:24]} Qb7 {[%emt 0:06:47]} 20. Be3 {[%emt 0:01:21]} Rfe8 {[%emt 0:01:54]} 21. Nc5 {[%emt 0:06:08]} Bxc5 {[%emt 0:01:47]} 22. Bxc5 {[%emt 0:00:07]} Ne4 {[%emt 0:04:10]} 23. Rc2 {[%emt 0:00:33]} h5 {[%emt 0:05:47]} 24. Rac1 {[%emt 0:03:03]} Qd7 {[%emt 0:07:01]} 25. Qf3 {[%emt 0:07:21]} h4 {[%emt 0:05:56]} 26. Bd4 {[%emt 0:02:28]} hxg3 {[%emt 0:05:17]} 27. hxg3 {[%emt 0:00:14]} Re6 {[%emt 0:02:08]} 28. Qg4 {[%emt 0:01:16]} f6 {[%emt 0:03:08]} 29. Kg2 {[%emt 0:00:35]} Rce8 {[%emt 0:01:38]} 30. Rh1 {[%emt 0:01:39]} Qf7 {[%emt 0:03:30]} 31. Qh5 {[%emt 0:01:44]} Qxh5 {[%emt 0:00:25]} 32. Rxh5 {[%emt 0:00:05]} a5 {[%emt 0:04:18]} 33. Rh1 {[%emt 0:00:42]} c5 {[%emt 0:03:03]} 34. Bb2 {[%emt 0:01:06]} Rc6 {[%emt 0:00:54]} 35. Rd1 {[%emt 0:01:18]} d4 {[%emt 0:03:02]} 36. Rxd4 {[%emt 0:01:59]} Ng5 {[%emt 0:00:20]} 37. Ra4 {[%emt 0:00:41]} Ra8 {[%emt 0:00:21]} 38. Bd4 {[%emt 0:01:37]} Ne6 {[%emt 0:00:12]} 39. Be3 {[%emt 0:00:17]} Kf7 {[%emt 0:00:36]} 40. b4 {[%emt 0:00:32]} c4 {[%emt 0:05:54]} 41. b5 {[%emt 0:30:16]} Rcc8 {[%emt 0:30:47]} 1-0

[Event "WTCC-65 2018"]
[Site "Radebeul"]
[Date "2018.07.14"]
[Round "8"]
[White "Boehm, Erwin"]
[Black "Oechslein, Rainer"]
[Result "1/2-1/2"]
[ECO "B20"]
[WhiteElo "2181"]
[BlackElo "2228"]
[Annotator "NA"]
[PlyCount "81"]
[EventDate "2018.07.07"]
[EventType "team-tourn"]
[EventCountry "GER"]
[SourceTitle "playchess.com"]
[Source "ChessBase"]
[SourceQuality "1"]
[TimeControl "40/5400+30:1800+30"]

1. e4 {[%emt 0:00:00]} c5 {[%emt 0:00:12]} 2. b3 {[%emt 0:00:00]} Nc6 {[%emt 0:00:27]} 3. Bb2 {[%emt 0:00:00]} e6 {[%emt 0:01:04]} 4. Nf3 {[%emt 0:01:07]} d6 {[%emt 0:01:50]} 5. Bb5 {[%emt 0:00:40]} Bd7 {[%emt 0:01:43]} 6. O-O {[%emt 0:02:49]} Nf6 {[%emt 0:00:43]} 7. Bxc6 {[%emt 0:01:31] B50: Sizilianisch (Verschiedenes mit 2...d6)} Bxc6 {[%emt 0:00:22]} 8. e5 {[%emt 0:00:05]} Nd5 {[%emt 0:04:02]} 9. exd6 {[%emt 0:04:14]} Bxd6 {[%emt 0:01:40]} 10. Ne5 $146 {[%emt 0:00:52]} ({Vorgänger:} 10. Na3 O-O 11. Nc4 Bc7 12. Nce5 Be8 13. d4 f6 14. Nd3 cxd4 15. Nxd4 {1-0 (66) Fernandez,D (2500)-Arakhamia Grant,K (2350) London 2017}) 10... Bxe5 {[%emt 0:01:58]} 11. Bxe5 {[%emt 0:00:04]} Qg5 {[%emt 0:01:33]} 12. Bg3 {[%emt 0:05:38]} Nf4 {[%emt 0:06:38]} 13. f3 {[%emt 0:00:49]} Rd8 {[%emt 0:03:46]} 14. Qe1 {[%emt 0:08:45]} Ng6 {[%emt 0:16:25]} 15. d3 {[%emt 0:11:36]} O-O {[%emt 0:06:17]} 16. Nd2 {[%emt 0:01:57]} h5 {[%emt 0:10:25]} 17. Ne4 {[%emt 0:14:44]} Qe7 {[%emt 0:00:28]} 18. h3 {[%emt 0:03:22]} b6 {[%emt 0:02:01]} 19. Qe2 {[%emt 0:07:26]} e5 {[%emt 0:05:37]} 20. Rae1 {[%emt 0:03:19]} Rfe8 {[%emt 0:00:32]} 21. f4 {[%emt 0:05:28]} exf4 {[%emt 0:02:45]} 22. Bxf4 {[%emt 0:00:08]} Bxe4 {[%emt 0:13:03]} 23. Qxe4 {[%emt 0:12:47]} Qxe4 {[%emt 0:00:45]} 24. Rxe4 {[%emt 0:00:09]} Rxe4 {[%emt 0:00:25]} 25. dxe4 {[%emt 0:00:15]} Nxf4 {[%emt 0:00:35]} 26. Rxf4 {[%emt 0:00:08]} Rd1+ {[%emt 0:00:44]} 27. Rf1 {[%emt 0:00:12]} Rxf1+ {[%emt 0:03:17]} 28. Kxf1 {[%emt 0:00:05]} Kf8 {[%emt 0:00:07]} 29. Kf2 {[%emt 0:00:19]} Ke7 {[%emt 0:00:13]} 30. Kf3 {[%emt 0:01:01]} Kf6 {[%emt 0:00:39]} 31. Kf4 {[%emt 0:04:01]} g5+ {[%emt 0:00:31]} 32. Ke3 {[%emt 0:02:43]} Ke5 {[%emt 0:05:01]} 33. g3 {[%emt 0:03:47]} b5 {[%emt 0:02:28]} 34. c3 {[%emt 0:00:33]} a6 {[%emt 0:03:52]} 35. a3 $2 {[%emt 0:03:40]} (35. b4 $11) 35... Ke6 {[%emt 0:01:36]} 36. Ke2 {[%emt 0:00:17]} Ke7 {[%emt 0:00:25]} 37. Kf3 {[%emt 0:00:21]} Kd6 $11 {[%emt 0:00:21]} 38. Ke2 {[%emt 0:00:24]} Ke7 {[%emt 0:01:15]} 39. Kf3 {[%emt 0:00:13]} Ke6 {[%emt 0:00:16]} 40. Ke2 {[%emt 0:00:07]} Ke5 {[%emt 0:00:24]} 41. Ke3 {[%emt 0:30:25]} 1/2-1/2

[Event "WTCC-65 2018"]
[Site "Radebeul"]
[Date "2018.07.14"]
[Round "8"]
[White "Titz, Heimo"]
[Black "Huss, Andreas"]
[Result "1/2-1/2"]
[ECO "A13"]
[WhiteElo "2164"]
[BlackElo "2276"]
[Annotator "ChessBase"]
[PlyCount "101"]
[EventDate "2018.07.07"]
[EventType "team-tourn"]
[EventCountry "GER"]
[SourceTitle "playchess.com"]
[Source "ChessBase"]
[SourceQuality "1"]
[TimeControl "40/5400+30:1800+30"]

1. c4 {[%emt 0:00:00]} e6 {[%emt 0:00:00]} 2. Nf3 {[%emt 0:00:36]} Nf6 {[%emt 0:00:00]} 3. g3 {[%emt 0:01:37]} d5 {[%emt 0:00:38]} 4. d4 {[%emt 0:00:10]} c6 {[%emt 0:00:57]} 5. Bg2 {[%emt 0:01:17]} Be7 {[%emt 0:00:28]} 6. O-O {[%emt 0:01:06]} O-O {[%emt 0:00:11]} 7. cxd5 {[%emt 0:05:59]} cxd5 {[%emt 0:01:15]} 8. Nc3 {[%emt 0:00:41]} Nc6 {[%emt 0:00:09]} 9. Bg5 {[%emt 0:01:32]} h6 {[%emt 0:00:35]} 10. Bxf6 {[%emt 0:00:20]} Bxf6 {[%emt 0:00:07]} 11. e3 {[%emt 0:01:23]} Qb6 {[%emt 0:02:47]} 12. Na4 {[%emt 0:01:31]} Qa5 {[%emt 0:02:40]} 13. a3 {[%emt 0:00:30]} b5 {[%emt 0:02:23]} 14. Nc5 {[%emt 0:00:15]} b4 {[%emt 0:00:30]} 15. axb4 {[%emt 0:00:26]} Qxb4 {[%emt 0:00:16]} 16. Qa4 {[%emt 0:08:00]} Qxa4 {[%emt 0:06:37]} 17. Rxa4 {[%emt 0:00:35]} Rb8 {[%emt 0:14:17]} 18. b3 {[%emt 0:05:49]} Be7 {[%emt 0:05:13]} 19. Rc1 {[%emt 0:00:17]} Bxc5 {[%emt 0:08:05]} 20. Rxc5 {[%emt 0:00:14]} Bd7 {[%emt 0:00:23]} 21. Nd2 {[%emt 0:01:58]} Rb7 {[%emt 0:09:49]} 22. Bf1 {[%emt 0:01:03]} Nb4 {[%emt 0:05:42]} 23. Ra1 {[%emt 0:01:44]} Rfb8 {[%emt 0:01:12]} 24. f3 {[%emt 0:01:01]} Kf8 {[%emt 0:01:27]} 25. Kf2 {[%emt 0:00:32]} Ke7 {[%emt 0:00:33]} 26. Rac1 {[%emt 0:10:48]} Kd6 {[%emt 0:05:31]} 27. e4 {[%emt 0:03:18]} Nc6 {[%emt 0:03:35]} 28. Ke3 {[%emt 0:04:38]} Rb4 {[%emt 0:01:55]} 29. e5+ {[%emt 0:02:24]} Kc7 {[%emt 0:00:35]} 30. Ra1 {[%emt 0:01:28]} Kb6 {[%emt 0:06:34]} 31. Ra6+ {[%emt 0:01:19]} Kb7 {[%emt 0:00:21]} 32. Ra4 {[%emt 0:14:17]} Ka8 {[%emt 0:01:00]} 33. Rxb4 {[%emt 0:06:18]} Rxb4 {[%emt 0:00:18]} 34. Ba6 {[%emt 0:03:11]} Kb8 {[%emt 0:02:56]} 35. Rb5+ {[%emt 0:01:45]} Rxb5 {[%emt 0:00:33]} 36. Bxb5 {[%emt 0:00:10]} Nxe5 {[%emt 0:00:15]} 37. dxe5 {[%emt 0:00:14]} Bxb5 {[%emt 0:00:16]} 38. Kd4 {[%emt 0:00:08]} Kc7 {[%emt 0:00:31]} 39. Kc5 {[%emt 0:00:17]} Be2 {[%emt 0:01:12]} 40. b4 {[%emt 0:00:30]} a6 {[%emt 0:12:07]} 41. f4 {[%emt 0:30:10]} g5 {[%emt 0:08:15]} 42. Nb3 {[%emt 0:00:00]} gxf4 {[%emt 0:00:17]} 43. gxf4 {[%emt 0:00:00]} Kd7 {[%emt 0:00:34]} 44. Kb6 Ke7 45. Nd4 {[%emt 0:00:00]} Bd3 {[%emt 0:00:54]} 46. Kc6 {[%emt 0:00:00]} Kf8 {[%emt 0:03:53]} 47. Kd6 {[%emt 0:00:00]} Kg7 {[%emt 0:00:22]} 48. Ke7 {[%emt 0:00:00]} Bf5 {[%emt 0:05:53]} 49. Kd6 {[%emt 0:00:00]} Kg6 {[%emt 0:02:29]} 50. Ke7 {[%emt 0:00:00]} Bh3 {[%emt 0:06:22]} 51. Kf8 {[%emt 0:00:00]} 1/2-1/2

[Event "WTCC-65 2018"]
[Site "Radebeul"]
[Date "2018.07.14"]
[Round "8"]
[White "Bosbach, Gerhard"]
[Black "Van Herck, Marcel"]
[Result "1-0"]
[ECO "D50"]
[WhiteElo "2161"]
[BlackElo "2008"]
[Annotator "NA"]
[PlyCount "53"]
[EventDate "2018.07.07"]
[EventType "team-tourn"]
[EventCountry "GER"]
[SourceTitle "playchess.com"]
[Source "ChessBase"]
[SourceQuality "1"]
[TimeControl "40/5400+30:1800+30"]

1. d4 {[%emt 0:00:00]} Nf6 {[%emt 0:02:36]} 2. Nf3 {[%emt 0:00:20]} e6 {[%emt 0:01:54]} 3. c4 {[%emt 0:03:43]} d5 {[%emt 0:02:35]} 4. Nc3 {[%emt 0:03:51]} c5 {[%emt 0:01:36]} 5. Bg5 {[%emt 0:03:55]} cxd4 {[%emt 0:00:36]} 6. Nxd4 {[%emt 0:05:10]} e5 {[%emt 0:02:52]} 7. Ndb5 {[%emt 0:04:31]} a6 {[%emt 0:27:16]} 8. Qa4 {[%emt 0:19:19]} Bd7 {[%emt 0:00:41]} 9. Bxf6 {[%emt 0:07:31]} gxf6 {[%emt 0:01:02]} 10. cxd5 {[%emt 0:03:42]} Nc6 {[%emt 0:00:35]} 11. dxc6 {[%emt 0:02:15]} Bxc6 {[%emt 0:00:05]} 12. Rd1 {[%emt 0:02:59]} Qb8 {[%emt 0:07:59]} 13. Qb3 {[%emt 0:14:16]} axb5 {[%emt 0:00:26]} 14. Nxb5 {[%emt 0:01:23]} Bc5 {[%emt 0:07:46]} 15. e3 {[%emt 0:01:12]} O-O {[%emt 0:01:52]} 16. Bc4 {[%emt 0:01:47]} b6 {[%emt 0:01:43]} 17. O-O {[%emt 0:02:07]} Bxb5 {[%emt 0:02:54]} 18. Bxb5 {[%emt 0:00:20]} Rd8 {[%emt 0:01:42]} 19. Rxd8+ {[%emt 0:00:52]} Qxd8 {[%emt 0:00:05]} 20. Rd1 {[%emt 0:00:06]} Qf8 {[%emt 0:00:12]} 21. Bc4 {[%emt 0:04:50]} Ra7 {[%emt 0:01:29]} 22. Qd3 {[%emt 0:00:49]} Qe7 {[%emt 0:02:53]} 23. Qf5 {[%emt 0:01:28]} e4 {[%emt 0:01:10]} 24. Qc8+ {[%emt 0:00:46]} Kg7 {[%emt 0:00:14]} 25. Rd8 {[%emt 0:00:23]} Qe5 {[%emt 0:03:23]} 26. Rg8+ {[%emt 0:01:32]} Kh6 {[%emt 0:00:06]} 27. Qg4 {[%emt 0:00:12]} 1-0

[Event "WTCC-65 2018"]
[Site "Radebeul"]
[Date "2018.07.14"]
[Round "8"]
[White "Hammar, Bengt"]
[Black "Seret, Jean-Luc"]
[Result "0-1"]
[ECO "B00"]
[WhiteElo "2159"]
[BlackElo "2353"]
[Annotator "NA"]
[PlyCount "26"]
[EventDate "2018.07.07"]
[EventType "team-tourn"]
[EventCountry "GER"]
[SourceTitle "playchess.com"]
[Source "ChessBase"]
[SourceQuality "1"]
[TimeControl "40/5400+30:1800+30"]

1. e4 {[%emt 0:00:00]} b6 {[%emt 0:00:00]} 2. d4 {[%emt 0:05:28]} Bb7 {[%emt 0:00:00]} 3. Nc3 {[%emt 0:00:55]} e6 {[%emt 0:00:18]} 4. Nf3 {[%emt 0:01:03]} Bb4 {[%emt 0:00:38]} 5. Bd3 {[%emt 0:01:36]} Nf6 {[%emt 0:00:47]} 6. Qe2 {[%emt 0:02:01]} d5 {[%emt 0:02:48]} 7. exd5 {[%emt 0:00:21]} Qxd5 {[%emt 0:00:41]} 8. O-O {[%emt 0:00:52]} Bxc3 {[%emt 0:00:51]} 9. bxc3 {[%emt 0:00:07]} O-O {[%emt 0:00:07]} 10. Bg5 {[%emt 0:02:06]} Nbd7 {[%emt 0:13:09]} 11. c4 {[%emt 0:00:55]} Qd6 {[%emt 0:06:32]} 12. c3 {[%emt 0:10:06]} Ng4 {[%emt 0:05:44]} 13. d5 {[%emt 0:14:15]} Rae8 {[%emt 0:06:08]} 0-1

[Event "WTCC-65 2018"]
[Site "Radebeul"]
[Date "2018.07.14"]
[Round "8"]
[White "Krauseneck, Peter"]
[Black "Baumbach, Friedrich"]
[Result "1-0"]
[ECO "D00"]
[WhiteElo "2147"]
[BlackElo "2147"]
[Annotator "NA"]
[PlyCount "73"]
[EventDate "2018.07.07"]
[EventType "team-tourn"]
[EventCountry "GER"]
[SourceTitle "playchess.com"]
[Source "ChessBase"]
[SourceQuality "1"]
[TimeControl "40/5400+30:1800+30"]

1. d4 {[%emt 0:00:03]} d5 {[%emt 0:00:00]} 2. Nc3 {[%emt 0:00:12]} Bf5 {[%emt 0:00:05]} 3. Bf4 {[%emt 0:00:17]} e6 {[%emt 0:00:55]} 4. e3 {[%emt 0:00:51]} Nf6 {[%emt 0:00:21]} 5. f3 {[%emt 0:00:22]} Bd6 {[%emt 0:01:30]} 6. g4 {[%emt 0:03:39]} Bxf4 {[%emt 0:12:31]} 7. exf4 {[%emt 0:00:54]} Bg6 {[%emt 0:00:12]} 8. h4 {[%emt 0:00:12]} h5 {[%emt 0:00:44]} 9. f5 {[%emt 0:08:38]} Bh7 {[%emt 0:09:07]} 10. g5 {[%emt 0:01:23]} Ng8 {[%emt 0:14:58]} 11. fxe6 {[%emt 0:09:22]} fxe6 {[%emt 0:00:14]} 12. Qe2 {[%emt 0:00:16]} Bf5 {[%emt 0:07:38]} 13. Bh3 {[%emt 0:10:08]} Ne7 {[%emt 0:08:52]} 14. Bxf5 {[%emt 0:01:26]} exf5 {[%emt 0:00:03]} 15. Nh3 {[%emt 0:00:35]} Nbc6 {[%emt 0:05:49]} 16. O-O-O {[%emt 0:01:46]} Qd6 {[%emt 0:01:51]} 17. Nb5 {[%emt 0:06:55]} Qd7 {[%emt 0:01:05]} 18. Nf4 {[%emt 0:02:36]} a6 {[%emt 0:03:26]} 19. Nc3 {[%emt 0:01:44]} Qd6 {[%emt 0:06:52]} 20. Qe3 {[%emt 0:15:51]} O-O-O {[%emt 0:06:50]} 21. Qe6+ {[%emt 0:10:20]} Qxe6 {[%emt 0:06:07]} 22. Nxe6 {[%emt 0:00:02]} Rdg8 {[%emt 0:00:01]} 23. Nf4 {[%emt 0:00:36]} Rd8 {[%emt 0:00:43]} 24. Rhe1 {[%emt 0:00:15]} Rd6 {[%emt 0:01:12]} 25. Rd3 {[%emt 0:02:48]} Ng6 {[%emt 0:01:46]} 26. Nxg6 {[%emt 0:02:26]} Rxg6 {[%emt 0:00:02]} 27. Nxd5 {[%emt 0:01:22]} Rd8 {[%emt 0:01:01]} 28. Nf4 {[%emt 0:01:32]} Rgd6 {[%emt 0:00:11]} 29. c3 {[%emt 0:00:26]} g6 {[%emt 0:00:47]} 30. Rde3 {[%emt 0:00:18]} Kd7 {[%emt 0:01:23]} 31. Kc2 {[%emt 0:02:56]} b5 {[%emt 0:00:25]} 32. Ne6 {[%emt 0:04:56]} Ra8 {[%emt 0:00:55]} 33. Nc5+ {[%emt 0:00:19]} Kc8 {[%emt 0:00:31]} 34. Re8+ {[%emt 0:00:30]} Rd8 {[%emt 0:00:35]} 35. R1e6 {[%emt 0:01:17]} Na5 {[%emt 0:01:40]} 36. Rxd8+ {[%emt 0:02:20]} Kxd8 {[%emt 0:00:03]} 37. Rxg6 {[%emt 0:00:14]} 1-0

[Event "WTCC-65 2018"]
[Site "Radebeul"]
[Date "2018.07.14"]
[Round "8"]
[White "Woeber, Friedrich"]
[Black "Hohler, Peter"]
[Result "1/2-1/2"]
[ECO "C55"]
[WhiteElo "2114"]
[BlackElo "2073"]
[Annotator "NA"]
[PlyCount "41"]
[EventDate "2018.07.07"]
[EventType "team-tourn"]
[EventCountry "GER"]
[SourceTitle "playchess.com"]
[Source "ChessBase"]
[SourceQuality "1"]
[TimeControl "40/5400+30:1800+30"]

1. e4 {[%emt 0:00:00]} e5 {[%emt 0:00:00]} 2. Nf3 {[%emt 0:00:01]} Nc6 {[%emt 0:00:10]} 3. Bc4 {[%emt 0:00:53]} Nf6 {[%emt 0:00:24]} 4. d3 {[%emt 0:00:27]} Be7 {[%emt 0:01:09]} 5. O-O {[%emt 0:01:02]} O-O {[%emt 0:02:46]} 6. Re1 {[%emt 0:00:44]} d6 {[%emt 0:00:29]} 7. a4 {[%emt 0:00:54]} Be6 {[%emt 0:05:59]} 8. Nbd2 {[%emt 0:04:35]} Nd7 {[%emt 0:02:57]} 9. a5 {[%emt 0:01:56]} a6 {[%emt 0:01:54]} 10. Nf1 {[%emt 0:02:44]} Nc5 {[%emt 0:03:41]} 11. Ng3 {[%emt 0:08:12]} Bxc4 {[%emt 0:08:07]} 12. dxc4 {[%emt 0:00:08]} Ne6 {[%emt 0:00:12]} 13. Nf5 {[%emt 0:03:21]} Bf6 {[%emt 0:00:07]} 14. c3 {[%emt 0:05:43]} Ne7 {[%emt 0:07:38]} 15. Ne3 {[%emt 0:04:23]} g6 {[%emt 0:01:01]} 16. Nd5 {[%emt 0:13:36]} Bg7 {[%emt 0:00:27]} 17. Qb3 {[%emt 0:11:24]} Nc5 {[%emt 0:10:44]} 18. Qc2 {[%emt 0:00:22]} Ne6 {[%emt 0:00:42]} 19. Qb3 {[%emt 0:03:39]} Nc5 {[%emt 0:00:12]} 20. Qc2 {[%emt 0:00:18]} Ne6 {[%emt 0:00:08]} 21. Qb3 {[%emt 0:03:24]} 1/2-1/2

[Event "WTCC-65 2018"]
[Site "Radebeul"]
[Date "2018.07.14"]
[Round "8"]
[White "Maes, Valeer"]
[Black "Nehmert, Ulrich"]
[Result "1/2-1/2"]
[ECO "A85"]
[WhiteElo "2088"]
[BlackElo "2220"]
[Annotator "NA"]
[PlyCount "24"]
[EventDate "2018.07.07"]
[EventType "team-tourn"]
[EventCountry "GER"]
[SourceTitle "playchess.com"]
[Source "ChessBase"]
[SourceQuality "1"]
[TimeControl "40/5400+30:1800+30"]

1. d4 {[%emt 0:00:00]} f5 {[%emt 0:00:00]} 2. c4 {[%emt 0:00:07]} Nf6 {[%emt 0:00:11]} 3. Nc3 {[%emt 0:01:12]} g6 {[%emt 0:00:37]} 4. h4 {[%emt 0:00:29]} d6 {[%emt 0:04:44]} 5. Bg5 {[%emt 0:02:47]} Bg7 {[%emt 0:01:34]} 6. Nf3 {[%emt 0:05:18]} c6 {[%emt 0:02:17]} 7. Bxf6 {[%emt 0:07:09]} Bxf6 {[%emt 0:02:28]} 8. e4 {[%emt 0:00:31]} Qa5 {[%emt 0:23:05]} 9. exf5 $11 {[%emt 0:08:25]} Bxf5 {[%emt 0:01:54]} 10. Qd2 {[%emt 0:01:13]} e5 {[%emt 0:08:26]} 11. Be2 {[%emt 0:10:15]} Nd7 {[%emt 0:02:58]} 12. d5 {[%emt 0:15:49]} cxd5 {[%emt 0:14:09]} 1/2-1/2

[Event "WTCC-65 2018"]
[Site "Radebeul"]
[Date "2018.07.14"]
[Round "8"]
[White "Van de Wynkele, Herman"]
[Black "Kargoll, Herbert"]
[Result "1/2-1/2"]
[ECO "C24"]
[WhiteElo "2084"]
[BlackElo "2230"]
[Annotator "NA"]
[PlyCount "105"]
[EventDate "2018.07.07"]
[EventType "team-tourn"]
[EventCountry "GER"]
[SourceTitle "playchess.com"]
[Source "ChessBase"]
[SourceQuality "1"]
[TimeControl "40/5400+30:1800+30"]

1. e4 {[%emt 0:00:00]} e5 {[%emt 0:00:00]} 2. Bc4 {[%emt 0:00:00]} Nf6 {[%emt 0:00:00]} 3. d3 {[%emt 0:00:22]} Bc5 {[%emt 0:00:00]} 4. Nf3 {[%emt 0:01:43]} d6 {[%emt 0:00:11]} 5. c3 {[%emt 0:01:20]} Nc6 {[%emt 0:05:15]} 6. b4 {[%emt 0:02:05]} Bb6 {[%emt 0:00:04]} 7. a4 {[%emt 0:00:12]} a6 {[%emt 0:00:10]} 8. Qb3 {[%emt 0:12:15]} Qe7 {[%emt 0:02:57] C54: Giuoco Piano: 4 c3 Nf6, main lines with 5 d4 and 5 d3} (8... O-O 9. a5 Ba7 10. O-O Ne7 11. Ng5 Qe8 12. Be3 c6 13. Bxa7 Rxa7 14. d4 exd4 15. cxd4 h6 16. e5 hxg5 17. exf6 gxf6 {0-1 (32) Nevednichy,V (2548)-Gyimesi,Z (2553) Miskolc 2004}) 9. Nbd2 {[%emt 0:02:51]} h6 {[%emt 0:00:34]} 10. h3 {[%emt 0:04:01]} O-O {[%emt 0:21:31]} 11. g4 $146 {[%emt 0:02:44]} ({Predecessor:} 11. Nf1 Be6 12. Be3 Nh5 13. g3 Bxe3 14. Nxe3 Qd7 15. Nh4 Ne7 16. Qd1 {1-0 (48) Lerch Gallemi,J (2188)-Gavilan Diaz,M (2256) Barcelona 2012}) 11... Nh7 {[%emt 0:01:07]} 12. Bb2 {[%emt 0:02:15]} Nd8 {[%emt 0:05:15]} 13. d4 {[%emt 0:02:30]} Ng5 {[%emt 0:02:08]} 14. Nxg5 {[%emt 0:01:29]} Qxg5 15. O-O-O {[%emt 0:00:43]} Ne6 {[%emt 0:02:47]} 16. Kb1 {[%emt 0:01:53]} Qf4 {[%emt 0:01:28]} 17. d5 {[%emt 0:12:04]} Ng5 {[%emt 0:01:25]} 18. Bd3 {[%emt 0:01:53]} Bxf2 {[%emt 0:11:48]} 19. Qc2 Nxh3 {[%emt 0:15:18]} 20. Rxh3 {[%emt 0:02:56]} Bxg4 {[%emt 0:00:05]} 21. Rdh1 {[%emt 0:01:10]} Bxh3 {[%emt 0:00:33]} 22. Rxh3 {[%emt 0:00:09]} Qg4 {[%emt 0:01:22]} 23. Rf3 {[%emt 0:01:27]} Bg3 {[%emt 0:02:06]} 24. Rf1 {[%emt 0:03:19]} Bf4 {[%emt 0:01:58]} 25. Nf3 {[%emt 0:01:21]} g6 {[%emt 0:10:30]} 26. Qe2 {[%emt 0:01:25]} Kg7 {[%emt 0:01:25]} 27. Rg1 {[%emt 0:00:53]} Qh3 {[%emt 0:00:14]} 28. Bc1 {[%emt 0:07:49]} Bxc1 {[%emt 0:00:21]} 29. Kxc1 {[%emt 0:00:11]} Rh8 {[%emt 0:01:52]} 30. Kc2 {[%emt 0:03:45]} Rag8 {[%emt 0:03:33]} 31. Qf2 {[%emt 0:01:00]} Kf8 {[%emt 0:00:59]} 32. Rf1 {[%emt 0:03:43]} Qd7 {[%emt 0:01:26]} 33. Nh4 {[%emt 0:02:38]} Qxa4+ {[%emt 0:00:12]} 34. Kb2 {[%emt 0:00:03]} Qd7 {[%emt 0:00:11]} 35. Qf6 {[%emt 0:01:31]} Ke8 {[%emt 0:00:22]} 36. Be2 {[%emt 0:02:14]} Qe7 {[%emt 0:00:36]} 37. Qf2 {[%emt 0:01:01]} h5 {[%emt 0:00:45]} 38. b5 {[%emt 0:00:42]} a5 {[%emt 0:03:14]} 39. b6 {[%emt 0:01:30]} Rh7 {[%emt 0:01:09]} 40. Bb5+ {[%emt 0:01:13]} Kd8 {[%emt 0:01:11]} 41. bxc7+ {[%emt 0:31:05]} Qxc7 {[%emt 0:33:27]} 42. c4 $19 {[%emt 0:01:23]} (42. Kc2 $17 {might work better.}) 42... f5 {[%emt 0:00:00]} 43. exf5 {[%emt 0:00:00]} g5 {[%emt 0:00:00]} 44. Ng6 {[%emt 0:00:00]} b6 {[%emt 0:00:00]} 45. f6 {[%emt 0:00:00]} Rxg6 {[%emt 0:00:00]} 46. f7 {[%emt 0:00:00]} Rxf7 {[%emt 0:00:00]} 47. Qxf7 {[%emt 0:00:00]} Qxf7 {[%emt 0:00:00]} 48. Rxf7 {[%emt 0:00:00]} g4 {[%emt 0:00:00]} 49. Rd7+ {[%emt 0:00:00]} Kc8 {[%emt 0:00:00]} 50. Rh7 {[%emt 0:00:00]} Rg8 51. Rxh5 g3 52. Rh1 g2 53. Rg1 1/2-1/2